{"text_format":"1","workbook":"xlsx","n_sheets":3,"sheets":["入力表（最初に入力）","様式第1-8号","別紙"],"not_rendered":{"charts":0,"images":0,"macros":0,"external_links":0,"defined_names":3,"comments":0,"pivot_tables":0},"unopened":[],"bounds":{"document_bytes":16777216,"sheet_cells":100000,"rows_first":2000,"rows_last":500,"rows_between":2000,"halvings":0,"cell_chars":16384,"cell_head_chars":4096},"cells_cut":0,"cells_raw":0,"read":"whole","date_system":"1900"}

{"sheet":"入力表（最初に入力）","index":0,"n_rows":14,"n_cols":16,"rows_kept":14,"cut":false,"hidden":false,"merged":[[13,2,13,14],[13,15,13,23],[6,2,6,23],[10,1,10,23],[11,2,11,14],[11,15,11,23],[12,2,12,14],[12,15,12,23],[8,18,8,23],[8,2,8,8],[7,7,7,23],[7,5,7,6],[7,2,7,4],[8,10,8,17],[5,2,5,23],[0,1,0,23],[2,2,2,23],[3,2,3,10],[3,11,3,23],[4,2,4,23]]}
[]
[]
[null,"組織の名称　　　　　⇒入力","○○○○○○"]
[null,"組織の代表の役職名　⇒入力","○○",null,null,null,null,null,null,null,null," ※規約と同じ名称にしてください。"]
[null,"組織の代表の氏名　　⇒入力","○○"]
[null,"市町村名　　　　　　⇒入力","○○市"]
[null,"市町村長の氏名　　　⇒入力","○○　○○"]
[null,"報告年度　　　　　　⇒入力","平成",null,null,null,null," 年度"]
[1,"組織の区分　　　　　⇒選択","　　　　活動組織",null,null,null,null,null,null,null,"　　広域活動組織"]
[]
[null,"【実施状況報告書】"]
[null,"書類名","様式番号",null,null,null,null,null,null,null,null,null,null,null,null,"提出先及び部数"]
[null," 実施状況報告書","様式第１－８号",null,null,null,null,null,null,null,null,null,null,null,null," 市町村へ１部"]
[null," 事業の成果等","様式第１－８号（別紙）",null,null,null,null,null,null,null,null,null,null,null,null," 市町村へ１部"]

{"sheet":"様式第1-8号","index":1,"n_rows":59,"n_cols":35,"rows_kept":59,"cut":false,"hidden":false,"merged":[[3,0,3,26],[5,19,5,20],[36,0,40,0],[36,1,36,7],[40,1,40,7],[38,14,38,26],[39,1,39,7],[39,8,39,12],[6,13,7,15],[8,13,9,15],[6,16,7,26],[5,15,5,18],[9,16,9,23],[9,24,9,26],[8,16,8,23],[8,24,8,26],[22,14,22,26],[23,1,23,7],[16,1,16,7],[18,14,18,26],[20,8,20,12],[20,1,20,7],[20,14,20,26],[36,14,36,26],[36,8,36,13],[30,1,30,7],[6,27,7,27],[17,8,17,12],[18,8,18,12],[19,8,19,12],[31,14,31,26],[24,1,24,7],[24,8,24,12],[33,8,33,12],[26,1,26,7],[26,8,26,12],[32,1,32,7],[34,1,34,7],[34,8,34,12],[16,8,16,13],[15,0,15,26],[22,0,26,0],[25,8,25,12],[22,1,22,7],[17,1,17,7],[18,1,18,7],[17,14,17,26],[16,14,16,26],[19,1,19,7],[25,1,25,7],[23,14,23,26],[25,14,25,26],[57,1,57,7],[57,8,57,12],[44,0,47,0],[44,1,44,7],[44,8,44,13],[47,1,47,7],[47,8,47,12],[50,14,50,26],[55,1,55,7],[55,8,55,12],[55,14,55,26],[56,1,56,7],[56,8,56,12],[56,14,56,26],[57,14,57,26],[47,14,47,26],[49,0,57,0],[49,1,49,7],[49,8,49,13],[54,8,54,12],[54,14,54,26],[37,8,37,12],[37,14,37,26],[43,0,43,26],[40,8,40,12],[40,14,40,26],[37,1,37,7],[46,8,46,12],[46,14,46,26],[44,14,44,26],[45,1,45,7],[45,8,45,12],[38,8,38,12],[39,14,39,26],[38,1,38,7],[49,14,49,26],[50,1,50,7],[50,8,50,12],[45,14,45,26],[46,1,46,7],[13,1,13,3],[29,0,29,26],[30,0,34,0],[51,8,51,12],[51,14,51,26],[52,8,52,12],[52,14,52,26],[53,8,53,12],[53,14,53,26],[34,14,34,26],[32,8,32,12],[32,14,32,26],[33,1,33,7],[31,1,31,7],[31,8,31,12],[30,8,30,13],[30,14,30,26],[33,14,33,26],[23,8,23,12],[24,14,24,26],[19,14,19,26],[22,8,22,13],[26,14,26,26],[16,0,20,0]]}
[]
[]
["（様式第１－８号）"]
[{"$f":"IF(ISBLANK('入力表（最初に入力）'!$F$8),AI4,AH4)","v":"平成○○年度　多面的機能支払交付金に係る実施状況報告書"},null,null,null,null,null,null,null,null,null,null,null,null,null,null,null,null,null,null,null,null,null,null,null,null,null,null,null,null,null,null,null,null,{"$f":"+CONCATENATE(\"平成\",DBCS('入力表（最初に入力）'!$F$8),\"年度　多面的機能支払交付金に係る実施状況報告書\")","v":"平成年度　多面的機能支払交付金に係る実施状況報告書"},"平成○○年度　多面的機能支払交付金に係る実施状況報告書"]
[]
[null,null,null,null,null,null,null,null,null,null,null,null,null,null,null,"報告年月日",null,null,null,"平成",null,null,"年",null,"月",null,"日","← 提出する日を記入"]
[null,null,null,null,null,null,null,null,null,null,null,null,null,"名　　　称",null,null,{"$f":"+'入力表（最初に入力）'!$C$3","v":"○○○○○○"},null,null,null,null,null,null,null,null,null,null,"← 自動で入力されます"]
[null,{"$f":"CONCATENATE('入力表（最初に入力）'!$C$6,\"長　　\",'入力表（最初に入力）'!$C$7,\"　様\")","v":"○○市長　　○○　○○　様"}]
[null,null,null,null,null,null,null,null,null,null,null,null,null,"代表者氏名",null,null,{"$f":"+'入力表（最初に入力）'!$C$4","v":"○○"},null,null,null,null,null,null,null,null,null,null,"← 自動で入力されます"]
[null,null,null,null,null,null,null,null,null,null,null,null,null,null,null,null,{"$f":"+'入力表（最初に入力）'!$C$5","v":"○○"},null,null,null,null,null,null,null,"印",null,null,"← 自動で入力されます"]
[]
[null,{"$f":"IF(ISBLANK('入力表（最初に入力）'!$F$8),AI12,AH12)","v":"平成○○年度の多面的機能支払交付金の実施状況について報告します。"},null,null,null,null,null,null,null,null,null,null,null,null,null,null,null,null,null,null,null,null,null,null,null,null,null,null,null,null,null,null,null,{"$f":"+CONCATENATE(\"平成\",DBCS('入力表（最初に入力）'!$F$8),\"年度の多面的機能支払交付金の実施状況について報告します。\")","v":"平成年度の多面的機能支払交付金の実施状況について報告します。"},"平成○○年度の多面的機能支払交付金の実施状況について報告します。"]
[]
[null,"＜平成",null,null,"○○","年度　収支実績　",null,null,null,"（平成　","○○","年","○","月","○","日","現在）＞"]
[]
["１．農地維持支払交付金及び資源向上支払交付金（施設の長寿命化のための活動を除く）［※１］"]
["収入の部","項　　目",null,null,null,null,null,null,"金　　額",null,null,null,null,null,"備　　考"]
[null,"１．前年度からの持越額",null,null,null,null,null,null,null,null,null,null,null,"円",null,null,null,null,null,null,null,null,null,null,null,null,null,"← 金銭出納簿の収入から転記"]
[null,"２．交付金（国費＋地方費）",null,null,null,null,null,null,null,null,null,null,null,"円",null,null,null,null,null,null,null,null,null,null,null,null,null,"← 金銭出納簿の収入から転記"]
[null,"３．利子等",null,null,null,null,null,null,null,null,null,null,null,"円",null,null,null,null,null,null,null,null,null,null,null,null,null,"← 金銭出納簿の収入から転記"]
[null,"合　　計",null,null,null,null,null,null,{"$f":"IF(SUM(I18:M20)=0,\"\",SUM(I18:M20))","v":""},null,null,null,null,"円",null,null,null,null,null,null,null,null,null,null,null,null,null,"← 金銭出納簿の収入の合計欄と合っているか確認"]
[]
["支出の部","項　　目",null,null,null,null,null,null,"金　　額",null,null,null,null,null,"備　　考"]
[null,"１．支出総額",null,null,null,null,null,null,null,null,null,null,null,"円",null,null,null,null,null,null,null,null,null,null,null,null,null,"← 金銭出納簿の支出の合計欄から転記"]
[null,"２．返還",null,null,null,null,null,null,null,null,null,null,null,"円",null,null,null,null,null,null,null,null,null,null,null,null,null,"← 金銭出納簿の返還額から転記"]
[null,"３．次年度への持越額",null,null,null,null,null,null,null,null,null,null,null,"円",null,null,null,null,null,null,null,null,null,null,null,null,null,"← 金銭出納簿の持越額から転記し、備考欄に支出予定を記入"]
[null,"合　　計",null,null,null,null,null,null,{"$f":"IF(SUM(I24:M26)=0,\"\",SUM(I24:M26))","v":""},null,null,null,null,"円",null,null,null,null,null,null,null,null,null,null,null,null,null,"← 金銭出納簿の支出の合計欄と合っているか確認"]
[]
[]
["２．資源向上支払交付金（施設の長寿命化のための活動）［※１］"]
["収入の部","項　　目",null,null,null,null,null,null,"金　　額",null,null,null,null,null,"備　　考"]
[null,"１．前年度からの持越額",null,null,null,null,null,null,null,null,null,null,null,"円",null,null,null,null,null,null,null,null,null,null,null,null,null,"← 金銭出納簿の収入から転記"]
[null,"２．交付金（国費＋地方費）",null,null,null,null,null,null,null,null,null,null,null,"円",null,null,null,null,null,null,null,null,null,null,null,null,null,"← 金銭出納簿の収入から転記"]
[null,"３．利子等",null,null,null,null,null,null,null,null,null,null,null,"円",null,null,null,null,null,null,null,null,null,null,null,null,null,"← 金銭出納簿の収入から転記"]
[null,"合　　計",null,null,null,null,null,null,{"$f":"IF(SUM(I32:M34)=0,\"\",SUM(I32:M34))","v":""},null,null,null,null,"円",null,null,null,null,null,null,null,null,null,null,null,null,null,"← 金銭出納簿の収入の合計欄と合っているか確認"]
[]
["支出の部","項　　目",null,null,null,null,null,null,"金　　額",null,null,null,null,null,"備　　考"]
[null,"１．支出総額",null,null,null,null,null,null,null,null,null,null,null,"円"]
[null,"２．返還",null,null,null,null,null,null,null,null,null,null,null,"円",null,null,null,null,null,null,null,null,null,null,null,null,null,"← 金銭出納簿の返還額から転記"]
[null,"３．次年度への持越額",null,null,null,null,null,null,null,null,null,null,null,"円",null,null,null,null,null,null,null,null,null,null,null,null,null,"← 金銭出納簿の持越額から転記し、備考欄に支出予定を記入"]
[null,"合　　計",null,null,null,null,null,null,{"$f":"IF(SUM(I39:M40)=0,\"\",SUM(I39:M40))","v":""},null,null,null,null,"円",null,null,null,null,null,null,null,null,null,null,null,null,null,"← 金銭出納簿の支出の合計欄と合っているか確認"]
[]
[]
["３．多面的機能支払交付金（農地維持支払交付金及び資源向上支払交付金）［※２］"]
["収入の部","項　　目",null,null,null,null,null,null,"金　　額",null,null,null,null,null,"備　　考"]
[null,"１．前年度からの持越額",null,null,null,null,null,null,null,null,null,null,null,"円"]
[null,"２．交付金（国費＋地方費）",null,null,null,null,null,null,null,null,null,null,null,"円"]
[null,"合　　計",null,null,null,null,null,null,{"$f":"IF(SUM(I46:M47)=0,\"\",SUM(I46:M47))","v":""},null,null,null,null,"円"]
[]
["支出の部","項　　目",null,null,null,null,null,null,"金　　額",null,null,null,null,null,"備　　考"]
[null,"１．支出総額",null,null,null,null,null,null,{"$f":"IF(SUM(I52:M55)=0,\"\",SUM(I52:M55))","v":""},null,null,null,null,"円"]
[null,null,"日当",null,null,null,null,null,null,null,null,null,null,"円",null,null,null,null,null,null,null,null,null,null,null,null,null,"← 金銭出納簿の支出の合計欄から転記"]
[null,null,"購入・リース費",null,null,null,null,null,null,null,null,null,null,"円",null,null,null,null,null,null,null,null,null,null,null,null,null,"← 金銭出納簿の支出の合計欄から転記"]
[null,null,"外注費",null,null,null,null,null,null,null,null,null,null,"円",null,null,null,null,null,null,null,null,null,null,null,null,null,"← 金銭出納簿の支出の合計欄から転記"]
[null,null,"その他",null,null,null,null,null,null,null,null,null,null,"円",null,null,null,null,null,null,null,null,null,null,null,null,null,"← 金銭出納簿の支出の合計欄から転記"]
[null,"２．返還",null,null,null,null,null,null,null,null,null,null,null,"円"]
[null,"３．次年度への持越額",null,null,null,null,null,null,null,null,null,null,null,"円"]
[null,"合　　計",null,null,null,null,null,null,{"$f":"IF(SUM(I51)+SUM(I56:M57)=0,\"\",(I51+I56+I57))","v":""},null,null,null,null,"円"]
[null,null,null,null,null,null,null,null,null,null,null,null,null,null,null,null,null,null,null,null,null,null,null,null,null,null,null,"← 向上活動支援交付金（高度な農地・水の保全活動）の\n　　継続地区は、シートの保護を解除し、アウトラインで表示"]

{"sheet":"別紙","index":2,"n_rows":209,"n_cols":45,"rows_kept":209,"cut":false,"hidden":false,"merged":[[138,0,138,30],[140,3,140,7],[75,5,75,14],[130,0,130,30],[132,3,132,4],[132,6,132,7],[136,2,136,4],[136,5,136,6],[78,15,78,16],[79,15,79,16],[79,17,79,18],[79,19,79,29],[79,1,80,4],[79,5,79,14],[80,5,80,14],[104,2,104,3],[104,5,104,6],[80,15,80,16],[80,17,80,18],[80,19,80,29],[77,19,77,29],[76,5,76,14],[76,15,76,16],[76,17,76,18],[78,17,78,18],[78,19,78,29],[68,1,78,3],[68,4,72,4],[68,5,68,14],[68,15,68,16],[68,17,68,18],[68,19,68,29],[69,5,69,14],[69,15,69,16],[77,15,77,16],[73,4,73,14],[73,15,73,16],[73,17,73,18],[73,19,73,29],[74,4,78,4],[78,5,78,14],[77,17,77,18],[76,19,76,29],[77,5,77,14],[74,19,74,29],[75,15,75,16],[75,17,75,18],[75,19,75,29],[74,5,74,14],[71,5,71,14],[71,15,71,16],[71,17,71,18],[71,19,71,29],[72,5,72,14],[72,15,72,16],[72,17,72,18],[72,19,72,29],[74,15,74,16],[74,17,74,18],[70,5,70,14],[65,15,65,16],[65,17,65,18],[65,19,65,29],[66,6,66,14],[66,15,66,16],[66,17,66,18],[67,19,67,29],[70,17,70,18],[70,19,70,29],[66,19,66,29],[67,4,67,14],[67,15,67,16],[67,17,67,18],[70,15,70,16],[59,4,66,4],[59,5,60,5],[65,5,66,5],[63,5,64,5],[63,6,63,14],[63,15,63,16],[63,17,63,18],[61,5,62,5],[61,19,61,29],[69,17,69,18],[69,19,69,29],[60,6,60,14],[60,15,60,16],[60,19,60,29],[64,6,64,14],[64,15,64,16],[61,6,61,14],[61,15,61,16],[61,17,61,18],[40,19,40,29],[36,17,36,18],[36,19,36,29],[37,6,37,14],[36,6,36,14],[36,15,36,16],[37,15,37,16],[39,17,39,18],[30,19,30,29],[31,6,31,14],[34,17,34,18],[34,19,34,29],[35,6,35,14],[35,15,35,16],[29,19,29,29],[24,15,24,16],[31,15,31,16],[25,4,41,4],[32,15,32,16],[32,17,32,18],[32,19,32,29],[41,6,41,14],[41,15,41,16],[25,5,29,5],[25,6,26,14],[35,19,35,29],[37,17,37,18],[27,15,27,16],[32,6,32,14],[28,19,28,29],[24,4,24,14],[25,19,25,29],[26,26,26,28],[24,19,24,29],[26,21,26,25],[40,6,40,14],[40,15,40,16],[40,17,40,18],[90,28,90,29],[91,28,91,29],[58,15,58,16],[42,1,42,14],[42,15,42,16],[42,17,42,18],[42,19,42,29],[56,1,67,3],[57,15,57,16],[57,17,57,18],[57,19,57,29],[60,17,60,18],[59,17,59,18],[58,17,58,18],[59,6,59,14],[59,15,59,16],[64,19,64,29],[63,19,63,29],[64,17,64,18],[62,6,62,14],[62,15,62,16],[62,17,62,18],[62,19,62,29],[65,6,65,14],[90,1,90,2],[91,1,91,2],[94,19,94,20],[94,22,94,23],[91,19,91,20],[91,22,91,23],[94,25,94,26],[90,19,90,20],[90,22,90,23],[90,25,90,26],[91,25,91,26],[92,19,92,20],[92,22,92,23],[92,25,92,26],[93,19,93,20],[93,22,93,23],[93,25,93,26],[91,16,91,17],[21,7,21,14],[22,7,22,14],[29,6,29,14],[30,5,33,5],[52,15,52,30],[33,17,33,18],[92,28,92,29],[93,28,93,29],[56,4,57,6],[56,7,56,14],[57,7,57,14],[38,5,41,5],[34,5,37,5],[88,1,88,18],[41,17,41,18],[41,19,41,29],[38,15,38,16],[38,17,38,18],[38,19,38,29],[39,6,39,14],[39,15,39,16],[38,6,38,14],[37,19,37,29],[58,4,58,14],[89,16,89,18],[89,19,89,21],[89,22,89,24],[89,25,89,27],[89,28,89,29],[23,4,23,14],[23,15,23,16],[23,17,23,18],[23,19,23,29],[30,6,30,14],[34,15,34,16],[34,6,34,14],[55,1,55,14],[55,15,55,16],[55,17,55,18],[59,19,59,29],[24,17,24,18],[39,19,39,29],[56,15,56,16],[55,19,55,29],[58,19,58,29],[88,25,88,29],[35,17,35,18],[33,19,33,29],[134,0,134,30],[127,10,127,11],[126,3,127,3],[126,4,127,4],[126,5,127,5],[126,6,127,6],[126,7,127,7],[126,8,127,8],[126,1,127,2],[127,12,127,20],[98,22,98,23],[98,25,98,26],[94,28,94,29],[95,28,95,29],[95,25,95,26],[96,25,96,26],[96,28,96,29],[97,28,97,29],[97,25,97,26],[126,9,127,9],[126,10,126,11],[126,12,126,20],[124,12,125,20],[119,12,119,20],[20,19,20,29],[90,16,90,17],[88,19,88,24],[22,17,22,18],[97,3,97,15],[117,1,118,9],[117,10,117,11],[111,7,112,7],[111,8,112,8],[98,1,98,2],[111,1,112,2],[98,28,98,29],[111,9,112,9],[111,10,111,11],[111,4,112,4],[111,5,112,5],[124,1,125,9],[117,12,118,20],[111,12,111,20],[124,10,124,11],[125,10,125,11],[119,5,120,5],[3,21,3,28],[5,21,5,28],[30,15,30,16],[30,17,30,18],[33,6,33,14],[20,17,20,18],[25,15,26,16],[25,17,26,18],[28,6,28,14],[28,15,28,16],[4,10,4,18],[5,10,5,18],[28,17,28,18],[7,15,7,30],[22,19,22,29],[33,15,33,16],[119,6,120,6],[119,7,120,7],[119,8,120,8],[119,9,120,9],[29,17,29,18],[118,10,118,11],[119,1,120,2],[119,3,120,3],[119,4,120,4],[119,10,119,11],[111,6,112,6],[109,1,110,9],[109,10,109,11],[92,1,92,2],[93,1,93,2],[92,3,92,15],[93,3,93,15],[120,10,120,11],[120,12,120,20],[98,3,98,15],[109,12,110,20],[110,10,110,11],[111,3,112,3],[98,16,98,17],[98,19,98,20],[107,15,107,30],[112,10,112,11],[112,12,112,20],[97,22,97,23],[97,19,97,20],[95,19,95,20],[95,22,95,23],[96,19,96,20],[96,22,96,23],[97,16,97,17],[94,1,94,2],[31,17,31,18],[31,19,31,29],[95,1,95,2],[94,3,94,15],[95,3,95,15],[94,16,94,17],[95,16,95,17],[92,16,92,17],[93,16,93,17],[96,1,96,2],[97,1,97,2],[96,3,96,15],[96,16,96,17],[90,3,90,15],[91,3,91,15],[89,1,89,2],[89,3,89,15],[12,31,16,31],[25,31,26,31],[66,31,67,31],[2,1,5,3],[4,5,4,8],[5,5,5,8],[2,5,2,8],[3,5,3,8],[21,17,21,18],[21,19,21,29],[20,1,20,14],[20,15,20,16],[27,17,27,18],[27,19,27,29],[21,1,41,3],[21,15,21,16],[56,17,56,18],[56,19,56,29],[29,15,29,16],[3,10,3,18],[22,15,22,16],[27,6,27,14],[8,0,8,30],[21,4,22,6]]}
[]
[]
[null,"取り組んだ\n活動に\nチェック",null,null,null,"農地維持支払",null,null,null,null,null,null,null,null,null,null,null,null,null,null,null,null,null,null,null,null,null,null,null,false,null,null,false]
[null,null,null,null,null,"資源向上支払",null,null,null,null,"地域資源の質的向上を図る共同活動",null,null,null,null,null,null,null,null,null,"〔","多面的機能の増進を図る活動 〕",null,null,null,null,null,null,null,false,true,false,false,false,false]
[null,null,null,null,null,null,null,null,null,null,"施設の長寿命化のための活動",null,null,null,null,null,null,null,null,null,null,null,null,null,null,null,null,null,null,null,false,null,null,false]
[null,null,null,null,null,null,null,null,null,null,"地域資源保全プランの策定",null,null,null,null,null,null,null,null,null,null,"組織の広域化・体制強化",null,null,null,null,null,null,null,null,false,false,null,false,false]
[]
[null,null,null,null,null,null,null,null,null,null,null,null,null,null,null,{"$f":"+CONCATENATE(\"【\",'入力表（最初に入力）'!$C$3,\"】\")","v":"【○○○○○○】"}]
["１．多面的機能支払交付金に係る事業の成果"]
[]
[null,null,"＜該当する活動にチェック＞"]
[]
[null,null,null,{"$f":"IF(AD3=TRUE,$AN$13,$AM$13)","v":"☐"},"農地維持支払　",null,null,null,null,null,null,null,null,null,null,null,null,null,null,null,null,null,null,null,null,null,null,null,null,null,null,"　　自動で☑が入ります",null,null,null,null,null,null,"☐","☑"]
[]
[null,null,null,{"$f":"IF(AD4=TRUE,$AN$13,$AM$13)","v":"☐"},"資源向上支払",null,null,null,null,{"$f":"IF(AE4=TRUE,$AN$13,$AM$13)","v":"☑"},"地域資源の質的向上を図る共同活動",null,null,null,null,null,null,null,null,"〔",{"$f":"IF(AF4=TRUE,$AN$13,$AM$13)","v":"☐"},"多面的機能の増進を図る活動　〕"]
[null,null,null,null,null,null,null,null,null,{"$f":"IF(AE5=TRUE,$AN$13,$AM$13)","v":"☐"},"施設の長寿命化のための活動"]
[null,null,null,null,null,null,null,null,null,{"$f":"IF(AE6=TRUE,$AN$13,$AM$13)","v":"☐"},"地域資源保全プランの策定",null,null,null,null,null,null,null,null,null,{"$f":"IF(AF6=TRUE,$AN$13,$AM$13)","v":"☐"},"組織の広域化・体制強化"]
[]
[]
["　（１） 農地維持支払交付金"]
[null,"活　動　項　目",null,null,null,null,null,null,null,null,null,null,null,null,null,"計画",null,"実施",null,"備　　考"]
[null,"地域資源の\n基礎的な\n保全活動",null,null,"点検",null,null," 農用地"]
[null,null,null,null,null,null,null," 施設（水路・農道・ため池）"]
[null,null,null,null,"　年度活動計画の策定"]
[null,null,null,null,"　事務・組織運営等の研修",null,null,null,null,null,null,null,null,null,null,null,null,null,null,null,null,null,null,null,null,null,null,null,null,null,null,"← 研修を実施した場合、実施日と具体的な\n　　実施内容を記入",null,null,null,null,null,null,"平成○○年度に実施予定","*/*（具体的な内容を記入）"]
[null,null,null,null,"実践活動","農用地"," ①遊休農地発生防止のための保全管理",null,null,null,null,null,null,null,null,null,null,null,null,null,null,null,null,null,null,null,null,null,null,null,null,"← 活動計画書に遊休農地を位置付けた場合\n　　解消した面積を記入"]
[null,null,null,null,null,null,null,null,null,null,null,null,null,null,null,null,null,null,null,null,null,"遊休農用地解消面積",null,null,null,null,null,null,null,"a"]
[null,null,null,null,null,null," ②畦畔・農用地法面・防風林等の草刈り"]
[null,null,null,null,null,null," ③施設の適正管理",null,null,null,null,null,null,null,null,null,null,null,null,null,null,null,null,null,null,null,null,null,null,null,null,null,null,null,null,null,null,null,"点検の結果、要補修箇所が確認されなかったため未実施"]
[null,null,null,null,null,null," ④異常気象時の対応",null,null,null,null,null,null,null,null,null,null,null,null,null,null,null,null,null,null,null,null,null,null,null,null,null,null,null,null,null,null,null,"異常気象が発生しなかったため未実施"]
[null,null,null,null,null,"水路"," ①水路の草刈り"]
[null,null,null,null,null,null," ②水路の泥上げ"]
[null,null,null,null,null,null," ③施設の適正管理",null,null,null,null,null,null,null,null,null,null,null,null,null,null,null,null,null,null,null,null,null,null,null,null,null,null,null,null,null,null,null,"点検の結果、要補修箇所が確認されなかったため未実施"]
[null,null,null,null,null,null," ④異常気象時の対応",null,null,null,null,null,null,null,null,null,null,null,null,null,null,null,null,null,null,null,null,null,null,null,null,null,null,null,null,null,null,null,"異常気象が発生しなかったため未実施"]
[null,null,null,null,null,"農道"," ①路肩・法面の草刈り"]
[null,null,null,null,null,null," ②側溝の泥上げ",null,null,null,null,null,null,null,null,null,null,null,null,null,null,null,null,null,null,null,null,null,null,null,null,null,null,null,null,null,null,null,"点検の結果、泥上げの必要がなかったため未実施"]
[null,null,null,null,null,null," ③施設の適正管理",null,null,null,null,null,null,null,null,null,null,null,null,null,null,null,null,null,null,null,null,null,null,null,null,null,null,null,null,null,null,null,"点検の結果、要補修箇所が確認されなかったため未実施"]
[null,null,null,null,null,null," ③異常気象時の対応",null,null,null,null,null,null,null,null,null,null,null,null,null,null,null,null,null,null,null,null,null,null,null,null,null,null,null,null,null,null,null,"異常気象が発生しなかったため未実施"]
[null,null,null,null,null,"ため池"," ①ため池の草刈り"]
[null,null,null,null,null,null," ②ため池の泥上げ",null,null,null,null,null,null,null,null,null,null,null,null,null,null,null,null,null,null,null,null,null,null,null,null,null,null,null,null,null,null,null,"点検の結果、泥上げの必要がなかったため未実施"]
[null,null,null,null,null,null," ③附帯施設の適正管理",null,null,null,null,null,null,null,null,null,null,null,null,null,null,null,null,null,null,null,null,null,null,null,null,null,null,null,null,null,null,null,"点検の結果、要補修箇所が確認されなかったため未実施"]
[null,null,null,null,null,null," ④異常気象時の対応",null,null,null,null,null,null,null,null,null,null,null,null,null,null,null,null,null,null,null,null,null,null,null,null,null,null,null,null,null,null,null,"異常気象が発生しなかったため未実施"]
[null,"　　地域資源の適切な保全管理のための推進活動",null,null,null,null,null,null,null,null,null,null,null,null,null,null,null,null,null,null,null,null,null,null,null,null,null,null,null,null,null,"← 実施日と具体的な実施内容を記入",null,null,null,null,null,null,"*/*（具体的な内容を記入）"]
[]
[]
[]
[]
[]
[]
[]
[]
[]
[null,null,null,null,null,null,null,null,null,null,null,null,null,null,null,{"$f":"+P8","v":"【○○○○○○】"}]
["　（２） 資源向上支払交付金"]
["　　① 地域資源の質的向上を図る共同活動"]
[null,"活　動　項　目",null,null,null,null,null,null,null,null,null,null,null,null,null,"計画",null,"実施",null,"備　　考"]
[null,"施設の\n軽微な補修",null,null,"機能診断",null,null," 農用地"]
[null,null,null,null,null,null,null," 施設（水路・農道・ため池）"]
[null,null,null,null,"　年度活動計画の策定"]
[null,null,null,null,"実践活動","農用地"," ①畦畔・農用地法面等の補修等",null,null,null,null,null,null,null,null,null,null,null,null,null,null,null,null,null,null,null,null,null,null,null,null,null,null,null,null,null,null,null,"機能診断の結果、破損箇所等が確認されなかったため未実施"]
[null,null,null,null,null,null," ②施設の補修等",null,null,null,null,null,null,null,null,null,null,null,null,null,null,null,null,null,null,null,null,null,null,null,null,null,null,null,null,null,null,null,"機能診断の結果、破損箇所等が確認されなかったため未実施"]
[null,null,null,null,null,"水路"," ①水路の補修等",null,null,null,null,null,null,null,null,null,null,null,null,null,null,null,null,null,null,null,null,null,null,null,null,null,null,null,null,null,null,null,"機能診断の結果、破損箇所等が確認されなかったため未実施"]
[null,null,null,null,null,null," ②附帯施設の補修等",null,null,null,null,null,null,null,null,null,null,null,null,null,null,null,null,null,null,null,null,null,null,null,null,null,null,null,null,null,null,null,"機能診断の結果、破損箇所等が確認されなかったため未実施"]
[null,null,null,null,null,"農道"," ①農道の補修等",null,null,null,null,null,null,null,null,null,null,null,null,null,null,null,null,null,null,null,null,null,null,null,null,null,null,null,null,null,null,null,"機能診断の結果、破損箇所等が確認されなかったため未実施"]
[null,null,null,null,null,null," ②附帯施設の補修等",null,null,null,null,null,null,null,null,null,null,null,null,null,null,null,null,null,null,null,null,null,null,null,null,null,null,null,null,null,null,null,"機能診断の結果、破損箇所等が確認されなかったため未実施"]
[null,null,null,null,null,"ため池"," ①堤体の補修等",null,null,null,null,null,null,null,null,null,null,null,null,null,null,null,null,null,null,null,null,null,null,null,null,null,null,null,null,null,null,null,"機能診断の結果、破損箇所等が確認されなかったため未実施"]
[null,null,null,null,null,null," ②附帯施設の補修等",null,null,null,null,null,null,null,null,null,null,null,null,null,null,null,null,null,null,null,null,null,null,null,null,"← 研修を実施した場合、実施日と具体的な\n　　実施内容を記入",null,null,null,null,null,null,"機能診断の結果、破損箇所等が確認されなかったため未実施"]
[null,null,null,null,"　機能診断・補修技術等の研修",null,null,null,null,null,null,null,null,null,null,null,null,null,null,null,null,null,null,null,null,null,null,null,null,null,null,null,null,null,null,null,null,null,"平成○○年度に実施予定","*/*（具体的な内容を記入）"]
[null,"農村環境\n保全活動",null,null,"計画策定"," 生態系保全"]
[null,null,null,null,null," 水質保全"]
[null,null,null,null,null," 景観形成・生活環境保全"]
[null,null,null,null,null," 水田貯留機能増進・地下水かん養"]
[null,null,null,null,null," 資源循環"]
[null,null,null,null,"　啓発・普及"]
[null,null,null,null,"実践活動"," 生態系保全"]
[null,null,null,null,null," 水質保全"]
[null,null,null,null,null," 景観形成・生活環境保全"]
[null,null,null,null,null," 水田貯留機能増進・地下水かん養"]
[null,null,null,null,null," 資源循環"]
[null,"　　多面的機能の増進を図る活動",null,null,null,"広報活動"]
[null,null,null,null,null,"その他",null,null,null,null,null,null,null,null,null,null,null,null,null,null,null,null,null,null,null,null,null,null,null,null,null,"← 実施日と具体的な実施内容を記入"]
[]
[]
[]
[]
[]
[]
["　　② 施設の長寿命化のための活動"]
[null,"計　　画",null,null,null,null,null,null,null,null,null,null,null,null,null,null,null,null,null,"実　績",null,null,null,null,null,"計画の進捗"]
[null,"活動\n区分",null,"活動内容",null,null,null,null,null,null,null,null,null,null,null,null,"延べ数量\n[Ａ]",null,null,"暫定数量",null,null,"完成数量",null,null,"累積完成数量\n[Ｂ]",null,null,"進捗率\n[Ｂ/Ａ]"]
[null,null,null,null,null,null,null,null,null,null,null,null,null,null,null,null,null,null,null,null,null,null,null,null,null,null,null,null,{"$f":"IF(ISNUMBER(Q91),ROUND(Z91/Q91,2),\"\")","v":""}]
[null,null,null,null,null,null,null,null,null,null,null,null,null,null,null,null,null,null,null,null,null,null,null,null,null,null,null,null,{"$f":"IF(ISNUMBER(Q92),ROUND(Z92/Q92,2),\"\")","v":""}]
[null,null,null,null,null,null,null,null,null,null,null,null,null,null,null,null,null,null,null,null,null,null,null,null,null,null,null,null,""]
[null,null,null,null,null,null,null,null,null,null,null,null,null,null,null,null,null,null,null,null,null,null,null,null,null,null,null,null,""]
[null,null,null,null,null,null,null,null,null,null,null,null,null,null,null,null,null,null,null,null,null,null,null,null,null,null,null,null,""]
[null,null,null,null,null,null,null,null,null,null,null,null,null,null,null,null,null,null,null,null,null,null,null,null,null,null,null,null,""]
[null,null,null,null,null,null,null,null,null,null,null,null,null,null,null,null,null,null,null,null,null,null,null,null,null,null,null,null,""]
[null,null,null,null,null,null,null,null,null,null,null,null,null,null,null,null,null,null,null,null,null,null,null,null,null,null,null,null,""]
[null,null,null,null,null,null,null,null,null,null,null,null,null,null,null,null,null,null,null,null,null,null,null,null,null,null,null,null,""]
[]
[]
[]
[]
[null,"＜いずれかをチェック＞"]
[null,"☐","　有",null,"☐","　無"]
[]
[]
[null,null,null,null,null,null,null,null,null,null,null,null,null,null,null,{"$f":"+P8","v":"【○○○○○○】"}]
["　　③ 地域資源保全プランの策定"]
[null,"策定年月日",null,null,null,null,null,null,null,null,null,null,"地域資源保全プランの提出"]
[null,null,null,null,null,null,null,null,null,null,"チェック"]
[null,"平成 ",null,null,"年",null,"月",null,"日",null,"☐",null," 認定・交付申請の際に提出済み"]
[null,null,null,null,null,null,null,null,null,null,"☐",null," 今回提出"]
[]
[]
["　　④ 組織の広域化・体制強化"]
["　　　ア．広域活動組織の設立"]
[null,"設立年月日",null,null,null,null,null,null,null,null,null,null,"広域協定の認定書の写しの提出"]
[null,null,null,null,null,null,null,null,null,null,"チェック"]
[null,"平成 ",null,null,"年",null,"月",null,"日",null,"☐",null," 認定・交付申請の際に提出済み"]
[null,null,null,null,null,null,null,null,null,null,"☐",null," 今回提出"]
[]
[]
["　　　イ．特定非営利活動法人化"]
[null,"法人登記年月日",null,null,null,null,null,null,null,null,null,null,"特定非営利活動促進法第13条第2項\nの登記事項証明書の写しの提出"]
[null,null,null,null,null,null,null,null,null,null,"チェック"]
[null,"平成 ",null,null,"年",null,"月",null,"日",null,"☐",null," 認定・交付申請の際に提出済み"]
[null,null,null,null,null,null,null,null,null,null,"☐",null," 今回提出"]
[]
[]
["２．農地中間管理機構の借り受け"]
[null,null,"＜いずれかをチェック＞"]
[null,null,"☐","　有",null,"☐","　無"]
[]
[{"$f":"IF('入力表（最初に入力）'!$A$9=1,AM135,IF('入力表（最初に入力）'!$A$9=2,AN135,AM135))","v":"３．総会の実施時期"},null,null,null,null,null,null,null,null,null,null,null,null,null,null,null,null,null,null,null,null,null,null,null,null,null,null,null,null,null,null,null,null,null,null,null,null,null,"３．総会の実施時期","３．運営委員会の実施時期"]
[null,{"$f":"IF('入力表（最初に入力）'!$A$9=1,AM136,IF('入力表（最初に入力）'!$A$9=2,AN136,AM136))","v":"　次のとおり総会を開催し、構成員の了解を得ています。"},null,null,null,null,null,null,null,null,null,null,null,null,null,null,null,null,null,null,null,null,null,null,null,null,null,null,null,null,null,null,null,null,null,null,null,null,"　次のとおり総会を開催し、構成員の了解を得ています。","　次のとおり運営委員会を開催し、構成員の了解を得ています。"]
[null,null,"開催日",null,null,"平成 ",null,null,"年",null,"月",null,"日",null,null,null,null,null,null,null,null,null,null,null,null,null,null,null,null,null,null,"← 総会又は運営委員会の開催日を記入"]
[]
["４．消費税に係る課税事業者の該当の有無"]
[]
[null,null,"☐","　課税事業者に該当"]
[]
[]
[]
[]
[]
[null,null,null,null,null,null,null,null,null,null,null,null,null,null,null,null,null,null,null,null,null,null,null,null,null,null,null,null,null,null,null,null,null,null,null,null,null,null,null,null,null,"＜農村環境保全活動＞","＜高度な保全活動＞","＜長寿命化の活動内容＞"]
[null,null,null,null,null,null,null,null,null,null,null,null,null,null,null,null,null,null,null,null,null,null,null,null,null,null,null,null,null,null,null,null,null,null,null,null,null,null,null,null,null,"■生態系保全","循環かんがい施設の保全等","■水路本体（補修）","■農業用水の保全"]
[null,null,null,null,null,null,null,null,null,null,null,null,null,null,null,null,null,null,null,null,null,null,null,null,null,null,null,null,null,null,null,null,null,null,null,null,null,null,null,null,null,"生物の生息状況の把握","水路への木炭等の設置","水路：水路の破損部分の補修","循環かんがい施設の保全等"]
[null,null,null,null,null,null,null,null,null,null,null,null,null,null,null,null,null,null,null,null,null,null,null,null,null,null,null,null,null,null,null,null,null,null,null,null,null,null,null,null,null,"生物多様性保全に配慮した施設の適正管理","冬期湛水等のためのポンプ設置","水路：水路の老朽化部分の補修","水路への木炭等の設置"]
[null,null,null,null,null,null,null,null,null,null,null,null,null,null,null,null,null,null,null,null,null,null,null,null,null,null,null,null,null,null,null,null,null,null,null,null,null,null,null,null,null,"水田を活用した生息環境の提供","末端ゲート・バルブの自動化等","水路：水路側壁の嵩上げ","冬期湛水等のためのポンプ設置"]
[null,null,null,null,null,null,null,null,null,null,null,null,null,null,null,null,null,null,null,null,null,null,null,null,null,null,null,null,null,null,null,null,null,null,null,null,null,null,null,null,null,"生物の生活史を考慮した適正管理","給水栓・取水口の自動化等","水路：Ｕ字フリューム等既設水路の再布設","末端ゲート・バルブの自動化等"]
[null,null,null,null,null,null,null,null,null,null,null,null,null,null,null,null,null,null,null,null,null,null,null,null,null,null,null,null,null,null,null,null,null,null,null,null,null,null,null,null,null,"放流・植栽を通じた在来生物の育成","グリーンベルト等の設置","■水路本体（更新）","給水栓・取水口の自動化等"]
[null,null,null,null,null,null,null,null,null,null,null,null,null,null,null,null,null,null,null,null,null,null,null,null,null,null,null,null,null,null,null,null,null,null,null,null,null,null,null,null,null,"外来種の駆除","防風林の設置","水路：素掘り水路からコンクリート水路への更新","■農地の保全"]
[null,null,null,null,null,null,null,null,null,null,null,null,null,null,null,null,null,null,null,null,null,null,null,null,null,null,null,null,null,null,null,null,null,null,null,null,null,null,null,null,null,"希少種の監視","水田魚道の設置","水路：水路の更新（一路線全体）","グリーンベルト等の設置"]
[null,null,null,null,null,null,null,null,null,null,null,null,null,null,null,null,null,null,null,null,null,null,null,null,null,null,null,null,null,null,null,null,null,null,null,null,null,null,null,null,null,"■水質保全","水路魚道の設置","■水路附帯施設（補修）","防風林の設置"]
[null,null,null,null,null,null,null,null,null,null,null,null,null,null,null,null,null,null,null,null,null,null,null,null,null,null,null,null,null,null,null,null,null,null,null,null,null,null,null,null,null,"水質保全を考慮した施設の適正管理","生息環境向上施設の設置","水路：集水枡、分水枡の補修","ため池等の浚渫"]
[null,null,null,null,null,null,null,null,null,null,null,null,null,null,null,null,null,null,null,null,null,null,null,null,null,null,null,null,null,null,null,null,null,null,null,null,null,null,null,null,null,"水田からの排水（濁水）管理","生物の移動経路の確保","水路：ゲートの補修","■地域環境の保全"]
[null,null,null,null,null,null,null,null,null,null,null,null,null,null,null,null,null,null,null,null,null,null,null,null,null,null,null,null,null,null,null,null,null,null,null,null,null,null,null,null,null,"循環かんがいの実施","水環境回復のための節水かんがいの導入","水路：ポンプの補修","水田魚道の設置"]
[null,null,null,null,null,null,null,null,null,null,null,null,null,null,null,null,null,null,null,null,null,null,null,null,null,null,null,null,null,null,null,null,null,null,null,null,null,null,null,null,null,"非かんがい期における通水","カバープランツ（地被植物）の設置","水路：安全施設の補修","水路魚道の設置"]
[null,null,null,null,null,null,null,null,null,null,null,null,null,null,null,null,null,null,null,null,null,null,null,null,null,null,null,null,null,null,null,null,null,null,null,null,null,null,null,null,null,"水質モニタリングの実施・記録管理","法面への小段（犬走り）の設置","水路：取水施設の補修","生息環境向上施設の設置"]
[null,null,null,null,null,null,null,null,null,null,null,null,null,null,null,null,null,null,null,null,null,null,null,null,null,null,null,null,null,null,null,null,null,null,null,null,null,null,null,null,null,"排水路沿いの林地帯等の適正管理","専門家による技術的指導の実施","水路：除塵施設（スクリーン等）の補修","生物の移動経路の確保"]
[null,null,null,null,null,null,null,null,null,null,null,null,null,null,null,null,null,null,null,null,null,null,null,null,null,null,null,null,null,null,null,null,null,null,null,null,null,null,null,null,null,"沈砂池の適正管理",null,"水路：水路法面の補修","水環境回復のための節水かんがいの導入"]
[null,null,null,null,null,null,null,null,null,null,null,null,null,null,null,null,null,null,null,null,null,null,null,null,null,null,null,null,null,null,null,null,null,null,null,null,null,null,null,null,null,"土壌流出防止のためのグリーンベルト等の適正管理",null,"水路：空気弁、バルブの補修","水田貯留（排水桝の改良、畦畔の嵩上げ等）"]
[null,null,null,null,null,null,null,null,null,null,null,null,null,null,null,null,null,null,null,null,null,null,null,null,null,null,null,null,null,null,null,null,null,null,null,null,null,null,null,null,null,"管理作業の省力化による水質源の保全",null,"水路：制御施設等の補修","水田貯留（水位調整板（管）の設置）"]
[null,null,null,null,null,null,null,null,null,null,null,null,null,null,null,null,null,null,null,null,null,null,null,null,null,null,null,null,null,null,null,null,null,null,null,null,null,null,null,null,null,"■景観形成・生活環境保全",null,"■水路附帯施設（更新）","カバープランツ（地被植物）の設置"]
[null,null,null,null,null,null,null,null,null,null,null,null,null,null,null,null,null,null,null,null,null,null,null,null,null,null,null,null,null,null,null,null,null,null,null,null,null,null,null,null,null,"農業用水の地域用水としての利用・管理",null,"水路：ゲートの更新","法面への小段（犬走り）の設置"]
[null,null,null,null,null,null,null,null,null,null,null,null,null,null,null,null,null,null,null,null,null,null,null,null,null,null,null,null,null,null,null,null,null,null,null,null,null,null,null,null,null,"景観形成のための施設への植栽等",null,"水路：ポンプの更新","■その他"]
[null,null,null,null,null,null,null,null,null,null,null,null,null,null,null,null,null,null,null,null,null,null,null,null,null,null,null,null,null,null,null,null,null,null,null,null,null,null,null,null,null,"農用地等を活用した景観形成活動",null,"水路：安全施設の設置","専門家による技術的指導の実施"]
[null,null,null,null,null,null,null,null,null,null,null,null,null,null,null,null,null,null,null,null,null,null,null,null,null,null,null,null,null,null,null,null,null,null,null,null,null,null,null,null,null,"伝統的施設や農法の保全・実施",null,"水路：取水施設の更新"]
[null,null,null,null,null,null,null,null,null,null,null,null,null,null,null,null,null,null,null,null,null,null,null,null,null,null,null,null,null,null,null,null,null,null,null,null,null,null,null,null,null,"農用地からの風塵の防止活動",null,"水路：除塵施設（スクリーン等）の更新"]
[null,null,null,null,null,null,null,null,null,null,null,null,null,null,null,null,null,null,null,null,null,null,null,null,null,null,null,null,null,null,null,null,null,null,null,null,null,null,null,null,null,"施設等の定期的な巡回点検・清掃",null,"水路：集水枡、分水枡の更新"]
[null,null,null,null,null,null,null,null,null,null,null,null,null,null,null,null,null,null,null,null,null,null,null,null,null,null,null,null,null,null,null,null,null,null,null,null,null,null,null,null,null,"■水田貯留・地下水かん養",null,"水路：甲蓋の設置"]
[null,null,null,null,null,null,null,null,null,null,null,null,null,null,null,null,null,null,null,null,null,null,null,null,null,null,null,null,null,null,null,null,null,null,null,null,null,null,null,null,null,"水田の貯留機能向上活動",null,"水路：空気弁、バルブの更新"]
[null,null,null,null,null,null,null,null,null,null,null,null,null,null,null,null,null,null,null,null,null,null,null,null,null,null,null,null,null,null,null,null,null,null,null,null,null,null,null,null,null,"水田の地下水かん養機能向上活動",null,"水路：制御施設等の更新"]
[null,null,null,null,null,null,null,null,null,null,null,null,null,null,null,null,null,null,null,null,null,null,null,null,null,null,null,null,null,null,null,null,null,null,null,null,null,null,null,null,null,"水源かん養林の保全",null,"■農道本体（補修）"]
[null,null,null,null,null,null,null,null,null,null,null,null,null,null,null,null,null,null,null,null,null,null,null,null,null,null,null,null,null,null,null,null,null,null,null,null,null,null,null,null,null,"■資源循環",null,"農道：農道路肩、農道法面の補修"]
[null,null,null,null,null,null,null,null,null,null,null,null,null,null,null,null,null,null,null,null,null,null,null,null,null,null,null,null,null,null,null,null,null,null,null,null,null,null,null,null,null,"地域資源の活用・資源循環のための活動",null,"農道：舗装の打換え（一部）"]
[null,null,null,null,null,null,null,null,null,null,null,null,null,null,null,null,null,null,null,null,null,null,null,null,null,null,null,null,null,null,null,null,null,null,null,null,null,null,null,null,null,null,null,"■農道本体（更新）"]
[null,null,null,null,null,null,null,null,null,null,null,null,null,null,null,null,null,null,null,null,null,null,null,null,null,null,null,null,null,null,null,null,null,null,null,null,null,null,null,null,null,null,null,"農道：未舗装農道を舗装（砂利）"]
[null,null,null,null,null,null,null,null,null,null,null,null,null,null,null,null,null,null,null,null,null,null,null,null,null,null,null,null,null,null,null,null,null,null,null,null,null,null,null,null,null,null,null,"農道：未舗装農道を舗装（コンクリート）"]
[null,null,null,null,null,null,null,null,null,null,null,null,null,null,null,null,null,null,null,null,null,null,null,null,null,null,null,null,null,null,null,null,null,null,null,null,null,null,null,null,null,null,null,"農道：未舗装農道を舗装（アスファルト）"]
[null,null,null,null,null,null,null,null,null,null,null,null,null,null,null,null,null,null,null,null,null,null,null,null,null,null,null,null,null,null,null,null,null,null,null,null,null,null,null,null,null,null,null,"■農道附帯施設（補修）"]
[null,null,null,null,null,null,null,null,null,null,null,null,null,null,null,null,null,null,null,null,null,null,null,null,null,null,null,null,null,null,null,null,null,null,null,null,null,null,null,null,null,null,null,"農道：農道側溝の補修"]
[null,null,null,null,null,null,null,null,null,null,null,null,null,null,null,null,null,null,null,null,null,null,null,null,null,null,null,null,null,null,null,null,null,null,null,null,null,null,null,null,null,null,null,"■農道附帯施設（更新）"]
[null,null,null,null,null,null,null,null,null,null,null,null,null,null,null,null,null,null,null,null,null,null,null,null,null,null,null,null,null,null,null,null,null,null,null,null,null,null,null,null,null,null,null,"農道：側溝蓋の設置"]
[null,null,null,null,null,null,null,null,null,null,null,null,null,null,null,null,null,null,null,null,null,null,null,null,null,null,null,null,null,null,null,null,null,null,null,null,null,null,null,null,null,null,null,"農道：土側溝をコンクリート側溝に更新"]
[null,null,null,null,null,null,null,null,null,null,null,null,null,null,null,null,null,null,null,null,null,null,null,null,null,null,null,null,null,null,null,null,null,null,null,null,null,null,null,null,null,null,null,"■ため池本体（補修）"]
[null,null,null,null,null,null,null,null,null,null,null,null,null,null,null,null,null,null,null,null,null,null,null,null,null,null,null,null,null,null,null,null,null,null,null,null,null,null,null,null,null,null,null,"ため池：洗掘箇所の補修"]
[null,null,null,null,null,null,null,null,null,null,null,null,null,null,null,null,null,null,null,null,null,null,null,null,null,null,null,null,null,null,null,null,null,null,null,null,null,null,null,null,null,null,null,"ため池：漏水箇所の補修"]
[null,null,null,null,null,null,null,null,null,null,null,null,null,null,null,null,null,null,null,null,null,null,null,null,null,null,null,null,null,null,null,null,null,null,null,null,null,null,null,null,null,null,null,"■ため池附帯施設（補修）"]
[null,null,null,null,null,null,null,null,null,null,null,null,null,null,null,null,null,null,null,null,null,null,null,null,null,null,null,null,null,null,null,null,null,null,null,null,null,null,null,null,null,null,null,"ため池：取水施設の補修"]
[null,null,null,null,null,null,null,null,null,null,null,null,null,null,null,null,null,null,null,null,null,null,null,null,null,null,null,null,null,null,null,null,null,null,null,null,null,null,null,null,null,null,null,"ため池：洪水吐の補修"]
[null,null,null,null,null,null,null,null,null,null,null,null,null,null,null,null,null,null,null,null,null,null,null,null,null,null,null,null,null,null,null,null,null,null,null,null,null,null,null,null,null,null,null,"ため池：安全施設の補修"]
[null,null,null,null,null,null,null,null,null,null,null,null,null,null,null,null,null,null,null,null,null,null,null,null,null,null,null,null,null,null,null,null,null,null,null,null,null,null,null,null,null,null,null,"■ため池附帯施設（更新）"]
[null,null,null,null,null,null,null,null,null,null,null,null,null,null,null,null,null,null,null,null,null,null,null,null,null,null,null,null,null,null,null,null,null,null,null,null,null,null,null,null,null,null,null,"ため池：ゲート、バルブの更新"]
[null,null,null,null,null,null,null,null,null,null,null,null,null,null,null,null,null,null,null,null,null,null,null,null,null,null,null,null,null,null,null,null,null,null,null,null,null,null,null,null,null,null,null,"ため池：安全施設の設置"]
[null,null,null,null,null,null,null,null,null,null,null,null,null,null,null,null,null,null,null,null,null,null,null,null,null,null,null,null,null,null,null,null,null,null,null,null,null,null,null,null,null,null,null,"ため池：波除護岸の更新"]
[null,null,null,null,null,null,null,null,null,null,null,null,null,null,null,null,null,null,null,null,null,null,null,null,null,null,null,null,null,null,null,null,null,null,null,null,null,null,null,null,null,null,null,"ため池：洪水吐の更新"]
[null,null,null,null,null,null,null,null,null,null,null,null,null,null,null,null,null,null,null,null,null,null,null,null,null,null,null,null,null,null,null,null,null,null,null,null,null,null,null,null,null,null,null,"■農地に係る施設（補修）"]
[null,null,null,null,null,null,null,null,null,null,null,null,null,null,null,null,null,null,null,null,null,null,null,null,null,null,null,null,null,null,null,null,null,null,null,null,null,null,null,null,null,null,null,"農地に係る施設：暗渠排水・排水口の補修"]
[null,null,null,null,null,null,null,null,null,null,null,null,null,null,null,null,null,null,null,null,null,null,null,null,null,null,null,null,null,null,null,null,null,null,null,null,null,null,null,null,null,null,null,"農地に係る施設：給排水施設の補修"]
[null,null,null,null,null,null,null,null,null,null,null,null,null,null,null,null,null,null,null,null,null,null,null,null,null,null,null,null,null,null,null,null,null,null,null,null,null,null,null,null,null,null,null,"農地に係る施設：固定式散水施設（ヘッドまで）の補修"]
[null,null,null,null,null,null,null,null,null,null,null,null,null,null,null,null,null,null,null,null,null,null,null,null,null,null,null,null,null,null,null,null,null,null,null,null,null,null,null,null,null,null,null,"農地に係る施設：鳥獣害防護柵の補修"]
[null,null,null,null,null,null,null,null,null,null,null,null,null,null,null,null,null,null,null,null,null,null,null,null,null,null,null,null,null,null,null,null,null,null,null,null,null,null,null,null,null,null,null,"■農地に係る施設（更新）"]
[null,null,null,null,null,null,null,null,null,null,null,null,null,null,null,null,null,null,null,null,null,null,null,null,null,null,null,null,null,null,null,null,null,null,null,null,null,null,null,null,null,null,null,"農地に係る施設：暗渠排水・排水口の更新"]
[null,null,null,null,null,null,null,null,null,null,null,null,null,null,null,null,null,null,null,null,null,null,null,null,null,null,null,null,null,null,null,null,null,null,null,null,null,null,null,null,null,null,null,"農地に係る施設：給排水施設の更新"]
[null,null,null,null,null,null,null,null,null,null,null,null,null,null,null,null,null,null,null,null,null,null,null,null,null,null,null,null,null,null,null,null,null,null,null,null,null,null,null,null,null,null,null,"農地に係る施設：固定式散水施設（ヘッドまで）の更新"]
[null,null,null,null,null,null,null,null,null,null,null,null,null,null,null,null,null,null,null,null,null,null,null,null,null,null,null,null,null,null,null,null,null,null,null,null,null,null,null,null,null,null,null,"農地に係る施設：鳥獣害防護柵の更新"]